[Event "Gibraltar Amateurs A 2020"]
[Site "Caleta"]
[Date "2020.01.24"]
[Round "5.2"]
[White "Teh, Wee Zhun"]
[Black "Dennis, Nigel W"]
[Result "1/2-1/2"]
[ECO "E73"]
[WhiteElo "1857"]
[BlackElo "1784"]
[Annotator "NA RC"]
[PlyCount "53"]
[EventDate "2020.01.20"]
[EventType "swiss"]
[EventCountry "GGB"]
[SourceTitle "playchess.com"]
[Source "ChessBase"]
[SourceQuality "1"]
[TimeControl "6600+10"]

1. d4 {[%emt 0:00:00]} Nf6 {[%emt 0:03:02]} 2. c4 {[%emt 0:01:49]} g6 {[%emt 0:00:12]} 3. Nc3 {[%emt 0:00:11]} Bg7 {[%emt 0:00:12]} 4. e4 {[%emt 0:00:06]} d6 {[%emt 0:00:04]} 5. Be2 {[%emt 0:00:10]} O-O {[%emt 0:00:17]} 6. Be3 {[%emt 0:00:08]} e5 {[%emt 0:00:35]} 7. d5 {[%emt 0:00:08]} Nbd7 {[%emt 0:00:37]} 8. g4 {[%emt 0:00:24]} Nc5 {[%emt 0:00:20] E73: King's Indian: Averbakh Variation without 6...c5} 9. f3 {[%emt 0:00:15]} a5 {[%emt 0:00:34]} (9... h5 10. g5 Nh7 11. Qd2 f6 12. h4 fxg5 13. hxg5 Rf4 14. Bxf4 exf4 15. Nh3 Bxh3 16. Rxh3 Nxg5 {1-0 (46) Aravindh,C (2605)-Shimanov,A (2587) Moscow 2019}) 10. h4 {[%emt 0:00:13]} h5 {[%emt 0:01:11]} 11. g5 {[%emt 0:00:05]} Ne8 {[%emt 0:01:08]} 12. Qd2 {[%emt 0:00:32]} f5 {[%emt 0:02:29]} 13. gxf6 {[%emt 0:05:32]} Bxf6 {[%emt 0:00:28]} 14. Bf2 $146 {[%emt 0:01:23]} ({Predecessor:} 14. O-O-O Kh7 15. Nh3 Bxh3 16. Rxh3 {½-½ (57) Handler,L (2389)-Enoeckl,P (2294) Austria 2018}) 14... Kh7 {[%emt 0:01:58]} 15. O-O-O {[%emt 0:02:23]} a4 {[%emt 0:05:14]} 16. Nh3 {[%emt 0:02:20]} Bxh3 {[%emt 0:05:28]} 17. Rxh3 {[%emt 0:00:38]} Bg7 {[%emt 0:00:29] [#]} 18. Be3 $1 {[%emt 0:02:08]} Nf6 {[%emt 0:02:37]} 19. Rg1 {[%emt 0:09:45]} Ng8 {[%emt 0:02:37]} 20. Rhg3 {[%emt 0:07:20]} Rf6 {[%emt 0:06:51]} 21. Kb1 {[%emt 0:03:31]} Bh6 {[%emt 0:01:15]} 22. Bxh6 {[%emt 0:07:48]} Nxh6 {[%emt 0:00:10]} 23. Bd1 {[%emt 0:03:41]} Ng8 {[%emt 0:04:22]} 24. Qg2 {[%emt 0:07:10]} Ne7 {[%emt 0:00:12]} 25. Rg5 {[%emt 0:06:42]} Qf8 {[%emt 0:05:26]} 26. Be2 {[%emt 0:09:28]} Qf7 {[%emt 0:03:21]} 27. Qg3 $11 {[%emt 0:12:04]} 1/2-1/2

[Event "Gibraltar Amateurs A 2020"]
[Site "Caleta"]
[Date "2020.01.24"]
[Round "5.4"]
[White "Zitan, Abdelhay"]
[Black "Anjali R. Sagar"]
[Result "0-1"]
[ECO "C68"]
[WhiteElo "1705"]
[BlackElo "1775"]
[Annotator "NA RC"]
[PlyCount "80"]
[EventDate "2020.01.20"]
[EventType "swiss"]
[EventCountry "GGB"]
[SourceTitle "playchess.com"]
[Source "ChessBase"]
[SourceQuality "1"]
[TimeControl "6600+10"]

1. e4 {[%emt 1:50:10]} e5 {[%emt 1:50:10]} 2. Nf3 {[%emt 0:00:10]} Nc6 {[%emt 0:00:10]} 3. Bb5 {[%emt 0:00:10]} a6 {[%emt 0:00:10]} 4. Bxc6 {[%emt 0:00:10]} dxc6 {[%emt 0:00:10]} 5. O-O {[%emt 0:00:10]} Bg4 {[%emt 0:00:00]} 6. h3 {[%emt 0:00:00]} Bxf3 {[%emt 0:00:00]} 7. Qxf3 {[%emt 0:00:00]} Qf6 {[%emt 0:00:00]} 8. Qxf6 {[%emt 0:00:00]} Nxf6 {[%emt 0:00:00]} 9. d3 {[%emt 0:00:00]} Bc5 {[%emt 0:00:00]} 10. Nc3 {[%emt 0:00:00]} O-O {[%emt 0:00:00]} 11. Kh2 {[%emt 0:00:00]} Nh5 {[%emt 0:00:00]} 12. g3 {[%emt 0:00:00]} Rad8 {[%emt 0:00:00]} 13. Ne2 {[%emt 0:00:00]} h6 {[%emt 0:00:00]} 14. g4 {[%emt 0:00:00]} Nf6 {[%emt 0:00:00]} 15. f4 {[%emt 0:00:00]} Nd7 {[%emt 0:00:00]} 16. c3 {[%emt 0:00:00]} exf4 {[%emt 0:00:00]} 17. d4 {[%emt 0:00:00]} Bb6 {[%emt 0:00:00]} 18. Bxf4 {[%emt 0:00:00]} Rfe8 {[%emt 0:00:00]} 19. e5 {[%emt 0:00:00]} f6 {[%emt 0:00:00]} 20. Rad1 {[%emt 0:00:00]} fxe5 {[%emt 0:00:00]} 21. dxe5 {[%emt 0:00:00]} Nf8 {[%emt 0:00:00]} 22. Bg3 {[%emt 0:00:00]} Rxd1 {[%emt 0:00:00]} 23. Rxd1 {[%emt 0:00:00]} Ng6 {[%emt 0:00:00]} 24. Kg2 {[%emt 0:00:00]} Nxe5 {[%emt 0:00:00]} 25. Nd4 {[%emt 0:00:00]} Nc4 {[%emt 0:00:00]} 26. Rb1 {[%emt 0:00:00]} c5 {[%emt 0:00:00]} 27. Nf5 {[%emt 0:00:00]} Re2+ {[%emt 0:00:00]} 28. Kf3 {[%emt 0:00:00]} Rxb2 {[%emt 0:00:00]} 29. Rxb2 {[%emt 0:00:00]} Nxb2 {[%emt 0:00:00]} 30. Ne7+ {[%emt 0:00:00]} Kf7 {[%emt 0:00:00]} 31. Nd5 {[%emt 0:00:00]} Na4 {[%emt 0:00:00]} 32. Nxb6 {[%emt 0:00:00]} cxb6 {[%emt 0:00:00]} 33. Be5 {[%emt 0:00:00]} c4 {[%emt 0:00:00]} 34. Bd4 {[%emt 0:00:00]} Nc5 {[%emt 0:00:00]} 35. Bxc5 {[%emt 0:00:00]} bxc5 {[%emt 0:00:00]} 36. Ke4 {[%emt 0:00:00]} Ke6 {[%emt 0:00:00]} 37. a4 {[%emt 0:00:00]} b5 {[%emt 0:00:00]} 38. axb5 {[%emt 0:00:00]} axb5 {[%emt 0:00:00]} 39. h4 {[%emt 0:00:00]} g6 {[%emt 0:00:00]} 40. Ke3 {[%emt 0:00:00]} Ke5 {[%emt 0:00:00]} 0-1

[Event "Gibraltar Amateurs A 2020"]
[Site "Caleta"]
[Date "2020.01.24"]
[Round "5.5"]
[White "Stamenov, Valeriy"]
[Black "Coric, Gojko"]
[Result "1-0"]
[ECO "C50"]
[WhiteElo "1761"]
[BlackElo "1704"]
[Annotator "NA RC"]
[PlyCount "85"]
[EventDate "2020.01.20"]
[EventType "swiss"]
[EventCountry "GGB"]
[SourceTitle "playchess.com"]
[Source "ChessBase"]
[SourceQuality "1"]
[TimeControl "6600+10"]

1. e4 {[%emt 0:00:00]} e5 {[%emt 0:00:33]} 2. Nf3 {[%emt 0:00:02]} Nc6 {[%emt 0:00:15]} 3. Bc4 {[%emt 0:00:11]} Bc5 {[%emt 0:00:27]} 4. O-O {[%emt 0:00:24]} Nf6 {[%emt 0:00:23]} 5. d4 {[%emt 0:00:43]} Nxd4 {[%emt 0:05:33]} 6. Nxe5 {[%emt 0:04:08]} Ne6 {[%emt 0:00:05]} 7. Bxe6 {[%emt 0:19:07]} fxe6 {[%emt 0:00:43]} 8. Nd3 {[%emt 0:04:18]} Be7 {[%emt 0:05:35]} 9. e5 {[%emt 0:04:09]} Nd5 {[%emt 0:01:23]} 10. Qh5+ {[%emt 0:10:53]} g6 {[%emt 0:00:02]} 11. Qf3 {[%emt 0:00:47]} Bg5 {[%emt 0:02:52]} 12. Nd2 {[%emt 0:00:59]} Rf8 {[%emt 0:03:51]} 13. Qh3 {[%emt 0:04:27]} Rf7 {[%emt 0:00:04]} 14. Ne4 {[%emt 0:02:51]} Be7 {[%emt 0:00:42]} 15. c4 {[%emt 0:17:54]} Nb6 {[%emt 0:00:02]} 16. b3 {[%emt 0:00:10]} d6 {[%emt 0:02:17]} 17. Bb2 {[%emt 0:01:31]} Bd7 {[%emt 0:03:55]} 18. Rad1 {[%emt 0:01:04]} Bc6 {[%emt 0:02:11]} 19. f3 {[%emt 0:08:05]} Bd7 {[%emt 0:02:06]} 20. Ndf2 {[%emt 0:04:33]} d5 {[%emt 0:01:20]} 21. cxd5 {[%emt 0:02:06]} Nxd5 {[%emt 0:00:47]} 22. Ng4 {[%emt 0:08:29]} Kf8 {[%emt 0:15:21]} 23. Qh6+ {[%emt 0:04:28]} Kg8 {[%emt 0:01:55]} 24. Rxd5 {[%emt 0:00:48]} exd5 {[%emt 0:00:12]} 25. Nef6+ {[%emt 0:02:05]} Bxf6 {[%emt 0:00:05]} 26. Nxf6+ {[%emt 0:01:41]} Rxf6 {[%emt 0:00:03]} 27. exf6 {[%emt 0:00:03]} Qf8 {[%emt 0:00:06]} 28. Qg5 {[%emt 0:01:27]} Be6 {[%emt 0:02:25]} 29. h4 {[%emt 0:01:25]} Re8 {[%emt 0:02:47]} 30. h5 {[%emt 0:00:27]} Bf7 {[%emt 0:03:43]} 31. hxg6 {[%emt 0:00:47]} hxg6 {[%emt 0:00:05]} 32. f4 {[%emt 0:02:55]} Kh7 {[%emt 0:00:27]} 33. Rf3 {[%emt 0:00:16]} Be6 {[%emt 0:03:20]} 34. f5 {[%emt 0:01:15]} Bxf5 {[%emt 0:03:31]} 35. Rxf5 {[%emt 0:00:01]} Qf7 {[%emt 0:09:51]} 36. Rxd5 {[%emt 0:00:26]} c6 {[%emt 0:01:05]} 37. Rd3 {[%emt 0:00:01]} Re1+ {[%emt 0:02:34]} 38. Kf2 {[%emt 0:00:05]} Rh1 {[%emt 0:00:02]} 39. Rh3+ {[%emt 0:00:26]} Rxh3 {[%emt 0:00:03]} 40. gxh3 {[%emt 0:00:01]} Qd7 {[%emt 0:01:00]} 41. Qe3 {[%emt 0:00:05]} Qf5+ {[%emt 0:00:09]} 42. Kg3 {[%emt 0:00:26]} Qd7 {[%emt 0:00:27]} 43. Qe7+ {[%emt 0:00:02]} 1-0

[Event "Gibraltar Amateurs A 2020"]
[Site "Caleta"]
[Date "2020.01.24"]
[Round "5.6"]
[White "Sagar Siya"]
[Black "D`haluin, Wim"]
[Result "1-0"]
[ECO "B78"]
[WhiteElo "1740"]
[BlackElo "1686"]
[Annotator "NA RC"]
[PlyCount "63"]
[EventDate "2020.01.20"]
[EventType "swiss"]
[EventCountry "GGB"]
[SourceTitle "playchess.com"]
[Source "ChessBase"]
[SourceQuality "1"]
[TimeControl "6600+10"]

1. e4 {[%emt 0:00:00]} c5 {[%emt 0:00:00]} 2. Nf3 {[%emt 0:00:05]} Nc6 {[%emt 0:00:04]} 3. d4 {[%emt 0:00:05]} cxd4 {[%emt 0:00:08]} 4. Nxd4 {[%emt 0:00:07]} g6 {[%emt 0:00:22]} 5. Nc3 {[%emt 0:00:13]} Bg7 {[%emt 0:00:24]} 6. Be3 {[%emt 0:00:12]} d6 {[%emt 0:01:08]} 7. Bc4 {[%emt 0:01:27]} Nf6 {[%emt 0:01:27]} 8. f3 {[%emt 0:00:35]} O-O {[%emt 0:01:12]} 9. Qd2 {[%emt 0:00:33]} Re8 {[%emt 0:04:51]} 10. O-O-O {[%emt 0:00:31]} Ne5 {[%emt 0:04:12]} 11. Bb3 {[%emt 0:00:22]} Bd7 {[%emt 0:00:47]} 12. Kb1 {[%emt 0:00:18]} Rc8 {[%emt 0:00:28]} 13. g4 {[%emt 0:00:10]} Nc4 {[%emt 0:01:09]} 14. Bxc4 {[%emt 0:00:16]} Rxc4 {[%emt 0:00:04]} 15. h4 {[%emt 0:00:14]} a6 {[%emt 0:02:22]} 16. h5 {[%emt 0:00:31]} b5 {[%emt 0:03:23]} 17. hxg6 {[%emt 0:00:16]} fxg6 {[%emt 0:00:38]} 18. Nd5 {[%emt 0:03:36]} Rf8 {[%emt 0:05:47]} 19. Qh2 {[%emt 0:12:43]} Nxd5 {[%emt 0:09:40]} 20. Qxh7+ {[%emt 0:01:55]} Kf7 {[%emt 0:00:05]} 21. Bh6 {[%emt 0:00:32]} Rg8 {[%emt 0:00:46]} 22. exd5 {[%emt 0:01:26]} Qf8 {[%emt 0:07:59]} 23. Ne6 {[%emt 0:05:20]} Bxe6 {[%emt 0:00:15]} 24. dxe6+ {[%emt 0:00:09]} Kf6 {[%emt 0:01:44]} 25. g5+ {[%emt 0:07:09]} Kxe6 {[%emt 0:08:31]} 26. Qxg6+ {[%emt 0:01:02]} Kd7 {[%emt 0:00:19]} 27. Rd3 {[%emt 0:08:20]} Rf4 {[%emt 0:04:38]} 28. Re3 {[%emt 0:05:19]} Rxf3 {[%emt 0:05:51]} 29. Qe6+ {[%emt 0:01:10]} Kd8 {[%emt 0:01:01]} 30. Rxf3 {[%emt 0:00:55]} Qxf3 {[%emt 0:03:14]} 31. Qxg8+ {[%emt 0:00:13]} Kd7 {[%emt 0:00:14]} 32. Rc1 {[%emt 0:00:56]} 1-0

[Event "Gibraltar Amateurs A 2020"]
[Site "Caleta"]
[Date "2020.01.24"]
[Round "5.7"]
[White "Greco, Joseph"]
[Black "Marani, Luca"]
[Result "1-0"]
[ECO "C26"]
[WhiteElo "1691"]
[BlackElo "1796"]
[Annotator "NA RC"]
[PlyCount "59"]
[EventDate "2020.01.20"]
[EventType "swiss"]
[EventCountry "GGB"]
[SourceTitle "playchess.com"]
[Source "ChessBase"]
[SourceQuality "1"]
[TimeControl "6600+10"]

1. e4 {[%emt 0:00:00]} e5 {[%emt 0:03:24]} 2. Nc3 {[%emt 0:00:25]} Nf6 {[%emt 0:01:08]} 3. g3 {[%emt 0:00:24]} Bc5 {[%emt 0:00:47]} 4. Bg2 {[%emt 0:00:26]} a6 {[%emt 0:07:53]} 5. Nf3 {[%emt 0:02:11]} Nc6 {[%emt 0:01:14]} 6. O-O {[%emt 0:00:43]} Ba7 {[%emt 0:00:40]} 7. a4 {[%emt 0:01:06]} b5 {[%emt 0:02:52]} 8. d3 {[%emt 0:05:18]} b4 {[%emt 0:12:57]} 9. Nd5 {[%emt 0:01:48]} d6 {[%emt 0:00:24]} 10. Bg5 {[%emt 0:04:29]} Bg4 {[%emt 0:00:21]} 11. c3 {[%emt 0:01:19]} Rb8 {[%emt 0:01:58]} 12. h3 {[%emt 0:04:29]} Be6 {[%emt 0:00:16]} 13. Nh4 {[%emt 0:08:00]} bxc3 {[%emt 0:24:30]} 14. bxc3 {[%emt 0:01:50]} Rb2 {[%emt 0:00:02]} 15. Qf3 {[%emt 0:01:35]} Bxd5 {[%emt 0:05:58]} 16. exd5 {[%emt 0:00:36]} Na5 {[%emt 0:02:24]} 17. Nf5 {[%emt 0:02:32]} O-O {[%emt 0:02:55]} 18. h4 {[%emt 0:05:18]} Nb3 {[%emt 0:09:44]} 19. Rad1 {[%emt 0:03:00]} Nc5 {[%emt 0:00:26]} 20. h5 {[%emt 0:11:01]} Kh8 {[%emt 0:06:08]} 21. h6 {[%emt 0:02:05]} gxh6 {[%emt 0:00:39]} 22. Nxh6 {[%emt 0:02:21]} Ncd7 {[%emt 0:01:07]} 23. Bh3 {[%emt 0:00:56]} Kg7 {[%emt 0:16:57]} 24. Bxd7 {[%emt 0:00:47]} Kg6 {[%emt 0:00:44]} 25. Qf5+ {[%emt 0:00:13]} Kg7 {[%emt 0:00:55]} 26. Ng4 {[%emt 0:00:42]} Nxg4 {[%emt 0:05:40]} 27. Bxd8 {[%emt 0:00:33]} Bxf2+ {[%emt 0:01:23]} 28. Kh1 {[%emt 0:01:21]} h5 {[%emt 0:00:38]} 29. Qg5+ {[%emt 0:00:18]} Kh8 {[%emt 0:00:31]} 30. Qxh5+ {[%emt 0:01:35]} 1-0

[Event "Gibraltar Amateurs A 2020"]
[Site "Caleta"]
[Date "2020.01.24"]
[Round "5.8"]
[White "Kuenitz, Klaus"]
[Black "Sedgwick, David"]
[Result "0-1"]
[ECO "C02"]
[WhiteElo "1726"]
[BlackElo "1894"]
[Annotator "NA RC"]
[PlyCount "58"]
[EventDate "2020.01.20"]
[EventType "swiss"]
[EventCountry "GGB"]
[SourceTitle "playchess.com"]
[Source "ChessBase"]
[SourceQuality "1"]
[TimeControl "6600+10"]

{[%evp 8,58,13,32767,32767,0,32767,-96,-76,32767,32767,-76,-37,32767,32767,32767,32767,-74,32767,32767,-30,32767,32767,32767,32767,32767,32767,32767,32767,-34,-11,32767,32767,32767,32767,32767,32767,-167,-152,-143,-146,32767,-251,-264,-435,-762,-325,-252,-357,-358,-260,-1313,-1697]} 1. e4 {[%emt 0:00:00]} e6 {[%emt 0:11:37]} 2. d4 {[%emt 0:00:22]} d5 {[%emt 0:00:35]} 3. e5 {[%emt 0:00:57]} c5 {[%emt 0:00:06]} 4. c3 {[%emt 0:00:32]} Nc6 {[%emt 0:00:07]} 5. Nf3 {[%emt 0:00:29]} Qb6 {[%emt 0:00:10]} 6. a3 {[%emt 0:00:44]} Bd7 {[%emt 0:00:34]} 7. dxc5 {[%emt 0:01:01] C02: French: Advance Variation} (7. b4 $14 {stays ahead.} cxd4 8. cxd4 Rc8 9. Bb2 Nge7 10. Qd2 Nf5 11. g4 Nh6 12. Rg1 f6 13. exf6 gxf6 14. Nc3 Nf7 15. h4 Ne7 16. Bd3 Bg7 17. Ne2 e5 18. dxe5 fxe5 {½-½ (71) Svidler,P (2729)-Lupulescu,C (2643) Douglas 2019}) 7... Bxc5 {[%emt 0:00:32]} 8. Qc2 {[%emt 0:01:01]} a5 {[%emt 0:02:32]} 9. Bd3 {[%emt 0:00:35]} Nge7 {[%emt 0:01:58]} 10. O-O {[%emt 0:00:49]} Ng6 {[%emt 0:00:44]} 11. Bxg6 $146 {[%emt 0:01:58]} ({Predecessor:} 11. Re1 Rc8 12. h4 a4 13. h5 Nge7 14. h6 gxh6 15. Bxh6 Na5 16. Ng5 Nb3 17. Ra2 Ng6 18. Bg7 Rg8 19. Bf6 h6 20. Nh3 {½-½ (20) Zhizmer,Y (2251)-Fingerov,D (2391) Kiev 2002}) 11... hxg6 {[%emt 0:00:21]} 12. Bg5 {[%emt 0:00:47]} (12. a4 $11 {keeps the balance.}) 12... Be7 {[%emt 0:02:27]} 13. Bf4 {[%emt 0:10:10]} Rc8 {[%emt 0:03:17]} 14. Qd2 {[%emt 0:04:54]} a4 {[%emt 0:01:29]} 15. Nd4 {[%emt 0:13:17]} Na5 {[%emt 0:03:24]} 16. Qc1 {[%emt 0:01:43]} Bc5 {[%emt 0:04:49]} 17. Be3 {[%emt 0:00:27]} Nb3 {[%emt 0:06:14]} 18. Nxb3 {[%emt 0:02:17]} Bxe3 {[%emt 0:00:08]} 19. Qxe3 {[%emt 0:01:45]} Qxb3 {[%emt 0:00:51]} 20. Qc1 {[%emt 0:01:55]} d4 {[%emt 0:08:03]} 21. Rd1 {[%emt 0:00:26]} Qb5 {[%emt 0:02:41]} 22. f4 {[%emt 0:03:00]} (22. Qf4 $15) 22... Qc5 {[%emt 0:04:13]} 23. Kh1 {[%emt 0:00:09]} Bc6 {[%emt 0:02:45]} 24. Qd2 {[%emt 0:02:13] [#]} d3 $1 {[%emt 0:03:50]} 25. c4 {[%emt 0:05:46]} Rh4 {[%emt 0:04:42]} 26. Nc3 {[%emt 0:02:55]} (26. Qe1 $142 Rxf4 27. Rd2) 26... Rg4 {[%emt 0:01:47]} 27. Rg1 {[%emt 0:00:30]} Qxc4 {[%emt 0:04:15]} 28. Raf1 {[%emt 0:00:07]} Ke7 {[%emt 0:02:12]} 29. Nd1 $2 {[%emt 0:00:33] [#]} (29. h3) 29... Rh8 $19 {[%emt 0:03:01]} 0-1

[Event "Gibraltar Amateurs A 2020"]
[Site "Caleta"]
[Date "2020.01.24"]
[Round "5.9"]
[White "Nash, Damian"]
[Black "Collins, Andrew"]
[Result "1-0"]
[ECO "A00"]
[WhiteElo "1890"]
[BlackElo "1720"]
[Annotator "NA RC"]
[PlyCount "76"]
[EventDate "2020.01.20"]
[EventType "swiss"]
[EventCountry "GGB"]
[SourceTitle "playchess.com"]
[Source "ChessBase"]
[SourceQuality "1"]
[TimeControl "6600+10"]

{[%evp 15,75,37,45,28,32767,32767,65,60,73,46,80,85,122,32767,32767,32767,32767,109,32767,32767,32767,32767,32767,32767,131,32767,32767,32767,114,32767,32767,248,268,32767,419,32767,489,32767,375,408,411,257,579,626,661,704,760,849,1359,1337,1401,1463,1302,1219,2476,2485,1531,2414,2621,2801,2663,1056]} 1. Nc3 {[%emt 0:00:00]} Nf6 {[%emt 0:00:28]} 2. g3 {[%emt 0:00:04]} d5 {[%emt 0:00:40]} 3. Bg2 {[%emt 0:00:02]} c6 {[%emt 0:00:53]} 4. d3 {[%emt 0:02:37]} e5 {[%emt 0:02:29]} 5. e4 {[%emt 0:01:19]} d4 {[%emt 0:00:59]} (5... dxe4 6. dxe4 Qxd1+ 7. Nxd1 Be6 8. f3 Na6 9. a3 Nd7 10. Be3 Bc5 11. Ne2 Ke7 12. Kf2 {½-½ (33) Lu,S (2620)-Wang,Y (2706) China 2017}) 6. Nce2 {[%emt 0:00:11] A00: Irregular Openings} Be7 {[%emt 0:03:19]} 7. f4 {[%emt 0:00:10]} Nbd7 $146 {[%emt 0:00:51]} ({Predecessor:} 7... Ng4 8. Nf3 exf4 9. Bxf4 Bb4+ 10. c3 dxc3 11. bxc3 Qb6 {0-1 (30) Wawrinsky,L (1830)-Knoblach,N (1810) Bad Neuenahr 2014}) 8. Nf3 {[%emt 0:00:16]} exf4 {[%emt 0:03:08]} 9. gxf4 {[%emt 0:05:49]} c5 {[%emt 0:03:25]} 10. O-O {[%emt 0:00:05]} Nb6 {[%emt 0:01:45]} 11. a4 {[%emt 0:03:25]} a5 {[%emt 0:00:24]} 12. Bd2 {[%emt 0:08:01]} Ra6 {[%emt 0:00:27]} 13. Qe1 {[%emt 0:02:40]} Ng4 {[%emt 0:02:05]} 14. h3 {[%emt 0:03:38]} Nf6 {[%emt 0:03:23]} 15. b3 {[%emt 0:09:40]} Na8 {[%emt 0:03:16]} 16. Rd1 {[%emt 0:10:18]} Nh5 {[%emt 0:00:40]} 17. Bc1 {[%emt 0:03:35]} Bd7 {[%emt 0:00:44]} 18. c3 {[%emt 0:05:13]} Be6 {[%emt 0:04:32]} 19. c4 {[%emt 0:01:15]} Qc8 {[%emt 0:00:44]} (19... Bd7 $11 {remains equal.}) 20. f5 {[%emt 0:02:10]} Bd7 {[%emt 0:00:03]} 21. Nf4 {[%emt 0:02:26]} Nxf4 {[%emt 0:03:42]} 22. Bxf4 {[%emt 0:00:02]} g5 {[%emt 0:00:22]} 23. Nxg5 {[%emt 0:06:20]} h6 {[%emt 0:01:58]} 24. Nf3 {[%emt 0:02:48]} f6 $2 {[%emt 0:01:31]} (24... Rg8 {was called for.} 25. Kh1 Qd8) 25. Nh4 {[%emt 0:04:24]} Rg8 {[%emt 0:02:58]} 26. Qe2 {[%emt 0:01:38]} Kd8 {[%emt 0:00:35]} 27. Qh5 {[%emt 0:04:18]} Nc7 {[%emt 0:01:46]} 28. Bxh6 {[%emt 0:03:31]} Rb6 $2 {[%emt 0:00:19]} (28... Be8 {is tougher.} 29. Ng6 Qd7) 29. Qf7 {[%emt 0:01:21]} Re8 {[%emt 0:02:32]} 30. Ng6 {[%emt 0:01:10]} Bc6 {[%emt 0:02:09]} 31. Bg7 {[%emt 0:05:05]} Rxb3 {[%emt 0:02:52]} 32. Nxe7 {[%emt 0:00:52]} Rxe7 {[%emt 0:00:28]} 33. Bxf6 {[%emt 0:00:14] Pin} Qd7 {[%emt 0:00:14]} 34. e5 {[%emt 0:05:50]} Rb2 {[%emt 0:05:21]} 35. Qf8+ {[%emt 0:02:16] Pin} Ne8 {[%emt 0:00:00]} 36. Qxe7+ {[%emt 0:01:07]} Qxe7 {[%emt 0:00:05]} 37. Bxe7+ {[%emt 0:00:07]} Kxe7 {[%emt 0:00:38]} 38. Bxc6 $18 {[%emt 0:00:02]} bxc6 {[%emt 0:02:21]} 1-0

[Event "Gibraltar Amateurs A 2020"]
[Site "Caleta"]
[Date "2020.01.24"]
[Round "5.11"]
[White "Mircov, Nicola-Alexandar"]
[Black "White, Gary"]
[Result "1-0"]
[ECO "B02"]
[WhiteElo "1788"]
[BlackElo "1608"]
[Annotator "NA RC"]
[PlyCount "78"]
[EventDate "2020.01.20"]
[EventType "swiss"]
[EventCountry "GGB"]
[SourceTitle "playchess.com"]
[Source "ChessBase"]
[SourceQuality "1"]
[TimeControl "6600+10"]

1. e4 {[%emt 0:13:14]} Nf6 {[%emt 0:00:02]} 2. e5 {[%emt 0:00:08]} Nd5 {[%emt 0:00:01]} 3. c4 {[%emt 0:00:27]} Nb6 {[%emt 0:00:02]} 4. c5 {[%emt 0:00:07]} Nd5 {[%emt 0:00:03]} 5. Nc3 {[%emt 0:00:04]} Nxc3 {[%emt 0:00:40]} 6. dxc3 {[%emt 0:00:05]} d6 {[%emt 0:00:45]} 7. Bc4 {[%emt 0:00:10]} e6 {[%emt 0:00:34]} 8. cxd6 {[%emt 0:00:47]} cxd6 {[%emt 0:00:11]} 9. Bf4 {[%emt 0:00:10]} d5 {[%emt 0:00:25]} 10. Bd3 {[%emt 0:00:07]} Nc6 {[%emt 0:04:28]} 11. Nf3 {[%emt 0:00:26]} Be7 {[%emt 0:02:47]} 12. h4 {[%emt 0:03:59]} h6 {[%emt 0:00:46]} 13. Qe2 {[%emt 0:01:55]} Bd7 {[%emt 0:02:40]} 14. g4 {[%emt 0:04:17]} Qa5 {[%emt 0:07:18]} 15. Kf1 {[%emt 0:01:24]} O-O-O {[%emt 0:03:26]} 16. Kg2 {[%emt 0:01:00]} Rdg8 {[%emt 0:01:29]} 17. a4 {[%emt 0:01:27]} Qd8 {[%emt 0:14:53]} 18. a5 {[%emt 0:04:38]} g5 {[%emt 0:08:03]} 19. hxg5 {[%emt 0:00:08]} Bxg5 {[%emt 0:01:10]} 20. Bxg5 {[%emt 0:03:24]} Rxg5 {[%emt 0:01:50]} 21. Nxg5 {[%emt 0:01:16]} Qxg5 {[%emt 0:01:35]} 22. Rh5 {[%emt 0:01:36]} Qg7 {[%emt 0:00:48]} 23. b4 {[%emt 0:00:16]} f5 {[%emt 0:02:30]} 24. exf6 {[%emt 0:02:43]} Qxf6 {[%emt 0:01:58]} 25. b5 {[%emt 0:00:19]} Nb4 {[%emt 0:01:21]} 26. b6 {[%emt 0:02:17]} Nxd3 {[%emt 0:05:54]} 27. Qxd3 {[%emt 0:00:46]} a6 {[%emt 0:01:33]} 28. Qd4 {[%emt 0:00:45]} Qd8 {[%emt 0:04:35]} 29. Rah1 {[%emt 0:00:41]} Re8 {[%emt 0:01:33]} 30. Kg3 {[%emt 0:02:41]} Bc6 {[%emt 0:00:23]} 31. Qe5 {[%emt 0:01:52]} d4 {[%emt 0:01:46]} 32. Rd1 {[%emt 0:00:27]} d3 {[%emt 0:00:08]} 33. Rxh6 {[%emt 0:00:31]} d2 {[%emt 0:00:20]} 34. Rxd2 {[%emt 0:00:15]} Qe7 {[%emt 0:01:29]} 35. Rxe6 {[%emt 0:00:49]} Qf7 {[%emt 0:01:27]} 36. Rxe8+ {[%emt 0:00:17]} Bxe8 {[%emt 0:00:14]} 37. Qd6 {[%emt 0:00:39]} Qd7 {[%emt 0:00:52]} 38. Qxd7+ {[%emt 0:00:14]} Bxd7 {[%emt 0:00:01]} 39. f4 {[%emt 0:00:38]} Be8 {[%emt 0:01:50]} 1-0

[Event "Gibraltar Amateurs A 2020"]
[Site "Caleta"]
[Date "2020.01.24"]
[Round "5.12"]
[White "O Muireagain, Colm"]
[Black "Bussmann, John"]
[Result "0-1"]
[ECO "B07"]
[WhiteElo "1376"]
[BlackElo "1752"]
[Annotator "NA RC"]
[PlyCount "60"]
[EventDate "2020.01.20"]
[EventType "swiss"]
[EventCountry "GGB"]
[SourceTitle "playchess.com"]
[Source "ChessBase"]
[SourceQuality "1"]
[TimeControl "6600+10"]

1. e4 {[%emt 0:00:00]} d6 {[%emt 0:06:55]} 2. d4 {[%emt 0:00:00]} g6 {[%emt 0:00:03]} 3. Nc3 {[%emt 0:00:04]} Bg7 {[%emt 0:00:02]} 4. Be3 {[%emt 0:00:09]} Nf6 {[%emt 0:00:05]} 5. Qd2 {[%emt 0:01:03]} Ng4 {[%emt 0:00:05]} 6. Bg5 {[%emt 0:00:37]} h6 {[%emt 0:00:46]} 7. Bh4 {[%emt 0:01:23]} Nd7 {[%emt 0:00:45]} 8. Be2 {[%emt 0:04:21]} Ngf6 {[%emt 0:00:18]} 9. f4 {[%emt 0:01:00]} c6 {[%emt 0:01:11]} 10. Nf3 {[%emt 0:05:38]} Qa5 {[%emt 0:00:37]} 11. O-O {[%emt 0:01:21]} b5 {[%emt 0:09:57]} 12. e5 {[%emt 0:01:36]} dxe5 {[%emt 0:01:59]} 13. fxe5 {[%emt 0:00:41]} Nh7 {[%emt 0:04:22]} 14. e6 {[%emt 0:04:42]} fxe6 {[%emt 0:00:17]} 15. Qd3 {[%emt 0:02:27]} Bf6 {[%emt 0:01:22]} 16. Qxg6+ {[%emt 0:01:58]} Kd8 {[%emt 0:00:08]} 17. Qe4 {[%emt 0:07:49]} Ng5 {[%emt 0:04:42]} 18. Bxg5 {[%emt 0:03:27]} hxg5 {[%emt 0:00:17]} 19. Qxc6 {[%emt 0:02:00]} g4 {[%emt 0:06:20]} 20. Qxa8 {[%emt 0:05:32]} gxf3 {[%emt 0:01:17]} 21. Rxf3 {[%emt 0:05:48]} Bxd4+ {[%emt 0:03:06]} 22. Kh1 {[%emt 0:04:38]} Qc7 {[%emt 0:03:31]} 23. h3 {[%emt 0:04:05]} Qe5 {[%emt 0:11:52]} 24. Bd3 {[%emt 0:12:12]} Nf6 {[%emt 0:08:38]} 25. Raf1 {[%emt 0:04:10]} a6 {[%emt 0:03:00]} 26. a4 {[%emt 0:04:16]} Kc7 {[%emt 0:02:40]} 27. axb5 {[%emt 0:03:27]} Ng4 {[%emt 0:00:12]} 28. Qc6+ {[%emt 0:05:08]} Kb8 {[%emt 0:00:47]} 29. Rf4 {[%emt 0:01:16]} Bb7 {[%emt 0:01:18]} 30. Qd7 {[%emt 0:05:06]} Rxh3# {[%emt 0:00:13]} 0-1